bitfinex-derivatives/quotes_SOLF0:USTF0_20251223
["timestamp","ask_amount","ask_price","bid_price","bid_amount"]
[1766499301690,0.05519089,123.41,123.36,10.7389]
[1766499302097,2.87447397,123.46,123.39,10.7373]
[1766499303097,0.06027646,123.44,123.41,0.05485261]
[1766499311103,0.06027646,123.44,123.41,3.49485261]
[1766499312000,2.87447397,123.48,123.41,3.49485261]
[1766499313097,0.05583738,123.46,123.42,3.44]
[1766499313408,0.05583738,123.46,123.43,0.05473674]
[1766499314400,95.3,123.51,123.43,3.49473674]
[1766499314598,98.17447397,123.51,123.43,3.44]
[1766499315295,0.0536079,123.48,123.46,0.06051135]
[1766499321594,2.87447397,123.47,123.42,3.44]
[1766499322212,2.87447397,123.49,123.43,3.44]
[1766499322702,0.00183063,123.47,123.45,3.50159235]
[1766499322920,0.00183063,123.47,123.45,0.06159235]
[1766499325102,0.00183063,123.47,123.45,3.50159235]
[1766499325914,98.17447397,123.52,123.46,3.44]
[1766499326410,105.46437397,123.52,123.46,3.44]
[1766499326800,2.93113494,123.5,123.44,3.44]
[1766499327013,10.22233494,123.5,123.44,3.44]
[1766499327207,2.87447397,123.48,123.42,3.44]
[1766499327912,0.05834637,123.46,123.44,0.05791223]
[1766499329016,2.87447397,123.5,123.44,3.49791223]
[1766499329814,0.06192666,123.48,123.44,3.49791223]
[1766499331114,2.93640063,123.48,123.44,0.05791223]
[1766499333219,2.93640063,123.48,123.44,3.54791223]
[1766499335917,10.22870063,123.48,123.44,0.05791223]
[1766499338422,7.2929,123.47,123.39,3.49]
[1766499338617,2.87447397,123.46,123.39,3.49]
[1766499339308,0.05584678,123.44,123.41,0.05469097]
[1766499339513,0.05584678,123.44,123.41,3.54469097]
[1766499349221,2.93032075,123.44,123.41,0.05469097]
[1766499350821,0.05584678,123.44,123.41,0.05469097]
[1766499360528,2.87447397,123.42,123.36,7.2987]
[1766499360736,2.87447397,123.42,123.36,10.7887]
[1766499361423,0.05934151,123.4,123.38,0.05275581]
[1766499361623,2.87447397,123.42,123.38,3.51275581]
[1766499362133,1.83944413,123.42,123.38,3.51275581]
[1766499362531,0.05235694,123.41,123.38,3.51275581]
[1766499363627,1.89180107,123.41,123.38,3.51275581]
[1766499365928,0.00235694,123.41,123.38,3.51275581]
[1766499367544,0.00235694,123.41,123.38,10.81075581]
[1766499367744,0.00235694,123.41,123.39,3.46]
[1766499368134,0.00235694,123.41,123.39,10.7575]
[1766499369642,0.00235694,123.41,123.39,3.46]
[1766499371745,0.00235694,123.41,123.39,10.7575]
[1766499373645,0.00235694,123.41,123.39,3.46]
[1766499375456,1.84180107,123.41,123.35,3.46]
[1766499375650,1.83944413,123.39,123.35,3.46]
[1766499376049,113.4849,123.43,123.35,3.46]
[1766499376453,0.05670154,123.4,123.38,0.05633546]
[1766499376659,0.05670154,123.4,123.35,3.46]
[1766499377656,0.05670154,123.4,123.36,0.05837789]
[1766499377857,0.05670154,123.4,123.36,3.51837789]
[1766499379546,7.2945,123.45,123.36,3.51837789]
[1766499379746,113.4661,123.45,123.36,3.46]
[1766499380553,0.05437924,123.42,123.39,0.06166036]
[1766499381964,0.05437924,123.42,123.35,3.46]
[1766499382964,0.05437924,123.42,123.37,0.06060368]
[1766499383362,7.2965,123.41,123.37,0.06060368]
[1766499383863,113.5186,123.39,123.28,3.46]
[1766499384159,7.2995,123.36,123.28,3.46]
[1766499384367,7.2995,123.36,123.29,3.46]
[1766499384867,0.0617522,123.34,123.31,0.06034936]
[1766499391359,7.3624522,123.34,123.27,3.43]
[1766499391572,0.0617522,123.34,123.26,3.43]
[1766499391874,113.5587,123.35,123.26,3.43]
[1766499392269,0.05723138,123.32,123.29,0.05627667]
[1766499400573,0.05723138,123.32,123.25,3.38]
[1766499400783,208.9771,123.33,123.25,3.38]
[1766499401378,7.3025,123.31,123.25,3.38]
[1766499401684,0.06010842,123.29,123.25,3.38]
[1766499403784,0.06010842,123.29,123.21,3.38]
[1766499403978,0.05404977,123.26,123.21,3.38]
[1766499405587,0.05404977,123.26,123.23,3.38]
[1766499408990,0.05404977,123.26,123.21,3.38]
[1766499409284,0.05404977,123.26,123.2,3.38]
[1766499409485,95.49404977,123.26,123.18,3.38]
[1766499409684,0.05267164,123.23,123.18,3.38]
[1766499410082,0.05267164,123.23,123.15,3.38]
[1766499410286,113.651,123.25,123.15,3.38]
[1766499410287,0.0567611,123.2,123.15,3.38]
[1766499412095,0.0567611,123.2,123.13,3.38]
[1766499412390,0.05920962,123.18,123.13,3.38]
[1766499413885,95.48,123.22,123.14,3.38]
[1766499414993,0.05456879,123.19,123.17,0.0511545]
[1766499415194,7.3066,123.24,123.17,3.4311545]
[1766499415391,102.7866,123.24,123.17,3.38]
[1766499415790,95.48,123.24,123.18,3.38]
[1766499416004,7.3055,123.26,123.18,3.38]
[1766499416194,0.0539742,123.23,123.21,0.05311553]
[1766499419092,0.0539742,123.23,123.18,3.38]
[1766499420193,0.0539742,123.23,123.19,3.43708847]
[1766499420496,95.5,123.25,123.19,3.43708847]
[1766499420697,95.5,123.25,123.19,3.38]
[1766499421288,0.05718885,123.23,123.21,0.0613837]
[1766499421490,7.305,123.27,123.21,0.0613837]
[1766499421693,7.3036,123.29,123.21,3.3113837]
[1766499421988,95.5,123.28,123.21,3.25]
[1766499422393,102.8043,123.28,123.21,3.25]
[1766499422593,0.06223015,123.26,123.23,0.05356436]
[1766499422989,7.36773015,123.26,123.19,3.25]
[1766499423194,7.3055,123.26,123.19,3.25]
[1766499423903,0.0581093,123.24,123.21,0.05464511]
[1766499424103,102.8044,123.28,123.21,3.30464511]
[1766499424496,95.5,123.28,123.21,3.30464511]
[1766499424686,209.1229,123.28,123.21,3.30464511]
[1766499424892,209.1229,123.28,123.21,0.05464511]
[1766499425096,113.70033617,123.26,123.21,0.00464511]
[1766499425303,113.70033617,123.26,123.17,3.25]
[1766499425600,7.3072,123.23,123.17,3.25]
[1766499425790,102.8072,123.23,123.17,3.25]
[1766499426300,102.8072,123.23,123.19,0.05836067]
[1766499426301,0.06004982,123.21,123.19,0.05836067]
[1766499426491,0.06004982,123.21,123.15,3.25]
[1766499427490,0.06004982,123.21,123.17,0.05885863]
[1766499431098,0.06004982,123.21,123.17,3.30885863]
[1766499433408,4.982e-05,123.21,123.17,3.30885863]
[1766499434603,4.982e-05,123.21,123.18,10.5599]
[1766499434903,4.982e-05,123.21,123.18,3.25]
[1766499441310,4.982e-05,123.21,123.18,10.5599]
[1766499441507,4.982e-05,123.21,123.15,3.25]
[1766499441809,113.68674982,123.21,123.13,3.25]
[1766499442005,113.6867,123.21,123.13,3.25]
[1766499442507,113.6867,123.21,123.16,0.05802514]
[1766499442711,0.05969747,123.18,123.16,0.05802514]
[1766499442901,0.05969747,123.18,123.13,3.25]
[1766499443906,115.39349747,123.18,123.07,3.25]
[1766499444213,0.06041636,123.14,123.07,3.25]
[1766499445406,113.7578,123.13,123.02,4.769317]
[1766499445620,113.7802,123.11,123.03,3.25]
[1766499445914,0.0550398,123.09,123.03,3.25]
[1766499446622,7.3706398,123.09,123.03,3.25]
[1766499447626,0.0550398,123.09,123.03,3.25]
[1766499450533,7.3706398,123.09,123.02,4.769317]
[1766499450722,209.4322398,123.09,123.02,4.769317]
[1766499451227,7.3168,123.07,123.02,1.7e-05]
[1766499451528,0.0543336,123.06,123.02,1.7e-05]
[1766499451932,0.0543336,123.06,123.02,3.470017]
[1766499452323,0.0543336,123.06,123.02,1.7e-05]
[1766499453831,7.3717336,123.06,123.02,1.7e-05]
[1766499454032,113.8799336,123.06,122.97,3.47]
[1766499454231,0.05728731,123.03,122.97,3.47]
[1766499455025,0.05728731,123.03,122.98,3.47]
[1766499455826,7.3168,123.07,122.98,3.47]
[1766499456825,0.05231658,123.04,123.01,0.06138803]
[1766499457526,0.00231658,123.04,123.01,3.53138803]
[1766499459528,0.00231658,123.04,123.01,0.06138803]
[1766499460740,0.00231658,123.04,122.99,3.46]
[1766499461627,113.8529,123.03,122.89,113.9712]
[1766499461827,113.8989,122.98,122.84,114.0203]
[1766499462030,113.8989,122.98,122.73,114.1252]
[1766499462031,114.0092,122.86,122.73,114.1252]
[1766499462234,95.64,122.85,122.73,114.1284]
[1766499462429,114.0359,122.83,122.7,118.97985737]
[1766499462738,0.06146435,122.78,122.7,4.82485737]
[1766499462938,0.05673431,122.75,122.7,4.82485737]
[1766499463142,95.66,122.81,122.72,114.1356]
[1766499463342,95.66,122.82,122.72,114.1356]
[1766499463548,113.995,122.88,122.76,114.1003]
[1766499463843,7.3268,122.9,122.79,3.46]
[1766499464035,95.66,122.92,122.82,3.46]
[1766499464235,95.66,122.92,122.84,3.46]
[1766499464440,209.576,122.96,122.85,3.46]
[1766499465038,95.66,122.96,122.86,3.46]
[1766499465242,95.68,122.99,122.9,3.51689685]
[1766499465430,95.68,122.99,122.85,209.8942]
[1766499465431,117.0775,122.97,122.85,114.0164]
[1766499466035,3.17,122.97,122.85,217.246]
[1766499466231,0.05492668,122.92,122.9,0.05175819]
[1766499466441,0.05276064,122.92,122.9,0.05175819]
[1766499467146,0.05276064,122.92,122.8,114.0631]
[1766499467340,117.115,122.93,122.81,95.9]
[1766499467540,117.115,122.93,122.82,3.46]
[1766499468245,0.05366296,122.89,122.86,0.05675715]
[1766499469845,0.05366296,122.89,122.82,3.46]
[1766499470946,0.00366296,122.89,122.84,3.5117775]
[1766499471346,0.00366296,122.89,122.84,117.5380775]
[1766499471644,3.22,122.96,122.86,3.46]
[1766499472040,209.6253,122.98,122.86,3.46]
[1766499472041,209.6253,122.98,122.87,3.46]
[1766499472643,0.05332449,122.94,122.91,0.05251872]
[1766499473542,0.00332449,122.94,122.91,0.05251872]
[1766499480850,0.00332449,122.94,122.91,96.01251872]
[1766499481251,0.00332449,122.94,122.91,0.05251872]
[1766499482746,117.1103,122.99,122.91,3.40251872]
[1766499482943,117.1103,122.99,122.91,3.35]
[1766499483450,212.8502,123.02,122.91,3.35]
[1766499483658,0.06109357,122.98,122.95,0.05669054]
[1766499483852,0.00109357,122.98,122.95,0.05669054]
[1766499484059,229.25724747,123.04,122.95,3.40669054]
[1766499484255,1.55784747,123.04,122.95,3.35]
[1766499484556,8.87634747,123.04,122.95,3.35]
[1766499485150,0.00397989,123.01,122.98,0.05946934]
[1766499486358,0.00397989,123.01,122.98,95.99946934]
[1766499486848,0.00397989,123.01,122.98,3.40946934]
[1766499487048,7.3174,123.06,122.99,99.29]
[1766499487557,7.3185,123.04,122.95,3.35]
[1766499487757,7.3185,123.04,122.97,3.35]
[1766499488148,0.05174602,123.02,122.99,0.06256336]
[1766499488346,0.00174602,123.02,122.99,0.06256336]
[1766499489755,0.00174602,123.02,122.99,3.41256336]
[1766499492353,0.00174602,123.02,123.0,95.92]
[1766499492857,7.3173,123.06,123.0,99.27]
[1766499493254,7.3163,123.08,123.01,3.35]
[1766499493557,117.1441,123.07,122.97,3.35]
[1766499493762,0.05330868,123.03,123.01,0.00468753]
[1766499494465,113.8178,123.07,123.01,0.00468753]
[1766499494652,3.33,123.06,122.99,95.92]
[1766499495564,0.06111826,123.04,123.01,0.05751516]
[1766499496763,3.33,123.09,123.01,3.40751516]
[1766499496961,3.33,123.09,123.01,3.35]
[1766499497172,99.03,123.12,123.01,3.35]
[1766499497769,0.05555211,123.08,123.05,0.05971256]
[1766499497962,99.03,123.12,123.05,0.05971256]
[1766499498369,7.3144,123.11,123.05,0.05971256]
[1766499498960,0.05927801,123.09,123.05,0.05971256]
[1766499500668,10.644,123.12,123.05,0.05971256]
[1766499501669,0.05361119,123.1,123.05,0.05971256]
[1766499502066,0.05361119,123.1,123.0,3.35]
[1766499502067,113.84161119,123.1,123.0,3.35]
[1766499502261,3.33,123.09,123.0,99.23]
[1766499502460,209.46,123.11,123.01,3.35]
[1766499502662,95.68,123.11,123.01,3.35]
[1766499503263,0.06059162,123.07,123.05,0.05476991]
[1766499505868,0.06059162,123.07,123.0,106.5503]
[1766499506174,0.06059162,123.07,123.01,3.35]
[1766499506573,0.06059162,123.07,123.01,10.67]
[1766499506773,0.06059162,123.07,123.03,0.06169024]
[1766499507873,0.06059162,123.07,123.03,3.41169024]
[1766499508073,7.3155,123.09,123.03,3.41169024]
[1766499508771,10.6455,123.09,123.03,0.06169024]
[1766499508972,0.05468912,123.07,123.03,0.06169024]
[1766499514979,0.05468912,123.07,123.03,3.59169024]
[1766499515175,102.9945,123.11,123.03,3.59169024]
[1766499515380,102.9945,123.11,123.03,3.53]
[1766499515777,106.3045,123.11,123.03,3.53]
[1766499516178,0.0527073,123.08,123.06,0.05262112]
[1766499519379,0.00408294,123.08,123.06,0.05262112]
[1766499520284,3.49,123.14,123.06,0.05262112]
[1766499520482,3.49,123.14,123.06,95.86]
[1766499520783,3.49,123.14,123.07,10.8363]
[1766499521384,0.05192408,123.12,123.09,0.05501256]
[1766499523786,3.49,123.16,123.09,3.57501256]
[1766499524086,3.49,123.16,123.09,3.52]
[1766499524677,0.05175071,123.14,123.11,0.05944876]
[1766499526181,0.05175071,123.14,123.07,106.696]
[1766499526382,0.05175071,123.14,123.08,3.52]
[1766499527087,0.05175071,123.14,123.1,0.05417123]
[1766499534987,3.53175071,123.14,123.1,0.05417123]
[1766499535194,3.48,123.11,123.02,3.52]
[1766499535779,7.3149,123.1,123.03,3.52]
[1766499536185,0.05420723,123.08,123.05,0.0562377]
[1766499536986,0.00420723,123.08,123.05,3.5762377]
[1766499537202,7.3131,123.13,123.06,3.52]
[1766499537499,7.3131,123.13,123.07,3.52]
[1766499537997,10.8323,123.15,123.07,3.52]
[1766499538198,10.8323,123.15,123.09,0.05312354]
[1766499538395,3.52,123.15,123.09,0.05312354]
[1766499539198,0.05319761,123.13,123.09,0.05312354]
[1766499541101,7.36639761,123.13,123.09,0.05312354]
[1766499541299,7.36639761,123.13,123.05,7.3173]
[1766499541300,3.39,123.12,123.05,3.34]
[1766499542505,0.05635533,123.1,123.07,0.06088219]
[1766499544796,7.3134,123.13,123.07,3.40088219]
[1766499545508,10.7034,123.13,123.07,3.40088219]
[1766499545908,0.06078815,123.11,123.07,3.40088219]
[1766499546510,3.39,123.16,123.08,3.34]
[1766499547206,3.39,123.16,123.09,3.34]
[1766499547400,106.3204,123.18,123.1,10.6546]
[1766499547704,0.05874476,123.15,123.13,0.0598387]
[1766499548210,0.05874476,123.15,123.1,3.34]
[1766499549310,0.05874476,123.15,123.11,0.05809251]
[1766499551218,3.44874476,123.15,123.11,0.05809251]
[1766499552205,10.76064476,123.15,123.11,0.05809251]
[1766499553516,7.3106,123.17,123.11,3.39809251]
[1766499553809,3.39,123.17,123.11,0.05809251]
[1766499554411,0.05552173,123.15,123.11,0.05809251]
[1766499555606,0.05552173,123.15,123.11,3.39809251]
[1766499555806,0.0021264,123.15,123.11,3.39809251]
[1766499556408,0.0021264,123.15,123.11,10.71209251]
[1766499561411,0.0021264,123.15,123.11,3.39809251]
[1766499561921,0.0021264,123.15,123.11,10.71219251]
[1766499562412,0.0021264,123.15,123.11,3.39809251]
[1766499563016,210.70185536,123.21,123.12,3.34]
[1766499563017,3.39,123.21,123.12,3.34]
[1766499563610,7.3091,123.2,123.12,3.34]
[1766499563810,3.39,123.21,123.12,3.34]
[1766499564019,0.0573267,123.18,123.15,0.05978223]
[1766499564214,3.39,123.17,123.1,3.34]
[1766499565318,0.05955353,123.15,123.12,0.05392704]
[1766499565713,7.3107,123.17,123.12,3.39392704]
[1766499566617,0.05760894,123.16,123.12,3.39392704]
[1766499567117,0.05760894,123.16,123.12,0.05392704]
[1766499568623,7.3118,123.15,123.12,0.05392704]
[1766499569624,0.05760894,123.16,123.12,0.05392704]
[1766499570715,7.36880894,123.16,123.12,0.05392704]
[1766499571324,0.05760894,123.16,123.12,0.05392704]
[1766499575338,3.61760894,123.16,123.12,0.05392704]
[1766499576922,0.05760894,123.16,123.12,0.05392704]
[1766499578731,3.56,123.15,123.08,3.47]
[1766499579032,3.56,123.15,123.01,121.9722]
[1766499579033,3.56,123.14,123.06,3.47]
[1766499579828,0.05978003,123.11,123.09,0.0559015]
[1766499584232,3.56,123.15,123.09,10.8411015]
[1766499585123,0.05760725,123.13,123.09,10.8411015]
[1766499585324,0.05760725,123.13,123.1,3.47]
[1766499585525,3.56,123.17,123.11,3.47]
[1766499585738,3.56,123.18,123.11,3.47]
[1766499586526,3.56,123.18,123.13,0.05159133]
[1766499586834,7.3108,123.17,123.13,0.05159133]
[1766499587527,3.56,123.18,123.13,0.05159133]
[1766499589336,10.8701,123.18,123.13,0.05159133]
[1766499590335,3.56,123.18,123.13,0.05159133]
[1766499590535,95.6,123.19,123.13,3.52159133]
[1766499590931,102.9095,123.19,123.13,3.52159133]
[1766499591937,7.3095,123.19,123.13,3.52159133]
[1766499592340,10.869,123.2,123.13,3.52159133]
[1766499592939,3.56,123.2,123.13,3.52159133]
[1766499593139,10.8697,123.19,123.13,3.52159133]
[1766499593333,10.8697,123.19,123.15,0.05383451]
[1766499596127,10.8706,123.17,123.11,3.47]
[1766499596336,3.56,123.17,123.11,3.47]
[1766499597237,0.05640497,123.15,123.13,0.05902346]
[1766499600343,3.56,123.19,123.13,0.05902346]
[1766499601248,3.56,123.19,123.13,3.46902346]
[1766499601442,10.8694,123.19,123.13,3.46902346]
[1766499601647,3.47,123.18,123.13,0.05902346]
[1766499601840,3.47,123.18,123.14,0.05358203]
[1766499602647,3.522995,123.17,123.14,0.00358203]
[1766499606848,3.47,123.16,123.09,7.315]
[1766499607444,3.47,123.16,123.09,10.725]
[1766499607849,0.06191505,123.14,123.11,0.05204535]
[1766499608946,3.53191505,123.14,123.11,0.00204535]
[1766499609148,3.53191505,123.14,123.06,3.41]
[1766499609149,3.47,123.13,123.06,3.41]
[1766499609653,3.47,123.16,123.07,3.41]
[1766499610048,0.05683073,123.13,123.1,0.06207935]
[1766499612556,209.3141,123.18,123.1,3.47207935]
[1766499612557,106.3804,123.18,123.1,3.47207935]
[1766499612752,106.3804,123.18,123.1,3.41]
[1766499612953,3.47,123.17,123.1,3.41]
[1766499613155,10.781,123.17,123.1,3.41]
[1766499613554,0.05185825,123.15,123.12,0.05793313]
[1766499616865,0.00185825,123.15,123.12,3.46793313]
[1766499617163,3.47,123.18,123.12,3.46793313]
[1766499617354,10.7801,123.18,123.12,3.46793313]
[1766499618062,3.47,123.18,123.12,3.46793313]
[1766499618762,10.7802,123.18,123.12,3.46793313]
[1766499618962,3.47,123.15,123.08,3.41]
[1766499619553,10.7832,123.13,123.05,3.41]
[1766499619755,3.47,123.13,123.05,3.41]
[1766499619955,0.00140335,123.1,123.08,0.0559475]
[1766499620156,0.00140335,123.1,123.02,3.41]
[1766499620356,3.47,123.11,123.02,3.41]
[1766499621152,0.05278934,123.08,123.05,0.05811085]
[1766499622460,0.05278934,123.08,123.02,3.41]
[1766499622665,3.52278934,123.08,123.02,3.41]
[1766499623361,7.3167,123.07,123.02,3.41]
[1766499623563,10.7867,123.07,123.03,0.05728645]
[1766499623757,0.06157585,123.06,123.0,3.41]
[1766499624058,3.47,123.07,122.97,3.41]
[1766499624267,7.3185,123.04,122.97,3.41]
[1766499624465,7.3185,123.04,122.94,3.41]
[1766499624466,3.47,123.03,122.94,3.41]
[1766499624862,0.05404745,123.0,122.97,0.05864044]
[1766499627964,3.52404745,123.0,122.94,3.41]
[1766499628166,3.52404745,123.0,122.92,3.41]
[1766499628473,3.47,123.03,122.93,3.41]
[1766499628870,0.05243827,122.99,122.97,0.06253197]
[1766499629774,3.47,123.03,122.97,0.06253197]
[1766499630465,7.3185,123.04,122.97,3.47253197]
[1766499630674,0.06049917,123.02,122.97,3.47253197]
[1766499630860,0.06049917,123.02,122.98,0.05547362]
[1766499632063,3.28,123.08,123.0,3.44]
[1766499632668,10.5962,123.08,123.0,3.44]
[1766499632870,3.28,123.07,123.0,3.44]
[1766499633269,0.05706731,123.05,123.02,0.05508831]
[1766499634980,3.48,123.08,123.02,0.05508831]
[1766499635776,0.06009769,123.06,123.02,0.05508831]
[1766499641780,3.54009769,123.06,122.98,3.49]
[1766499642079,3.48,123.06,122.98,3.49]
[1766499642486,3.48,123.05,122.95,7.3233]
[1766499642674,3.48,123.05,122.96,3.49]
[1766499642878,0.05823424,123.01,122.99,0.051919]
[1766499643788,3.48,123.05,122.99,0.051919]
[1766499644785,0.05806767,123.03,122.99,0.051919]
[1766499646789,3.48,123.07,122.99,3.541919]
[1766499646980,3.48,123.07,122.99,3.49]
[1766499647585,10.7966,123.07,122.99,10.8111]
[1766499647787,3.48,123.06,122.96,3.49]
[1766499647979,3.48,123.06,123.0,0.06088358]
[1766499648686,10.7978,123.05,123.0,0.06088358]
[1766499650881,3.48,123.04,123.0,0.00088358]
[1766499651888,0.05277184,123.03,123.0,0.00088358]
[1766499656681,3.53277184,123.03,123.0,0.00088358]
[1766499656880,3.53277184,123.03,122.92,3.49]
[1766499656881,3.48,123.01,122.92,3.49]
[1766499657888,0.05281934,122.98,122.95,0.06112288]
[1766499660797,3.32,122.97,122.9,10.7162]
[1766499661200,3.32,123.0,122.92,3.39]
[1766499661401,7.3218,122.99,122.92,3.39]
[1766499661605,0.05466065,122.97,122.94,0.06158002]
[1766499667303,7.32,123.02,122.94,3.45158002]
[1766499667501,3.32,123.03,122.94,3.39]
[1766499667905,3.32,123.03,122.96,10.7127]
[1766499668102,3.32,123.03,122.97,3.39]
[1766499668303,0.06042127,123.01,122.99,0.05931489]
[1766499670613,0.00042127,123.01,122.99,0.05931489]
[1766499670809,3.32,123.05,122.99,3.44931489]
[1766499674118,3.32,123.05,122.99,0.05931489]
[1766499674308,10.6379,123.05,122.99,0.05931489]
[1766499674504,3.32,123.04,122.99,0.05931489]
[1766499678012,3.32,123.06,122.99,0.05931489]
[1766499678205,3.32,123.06,123.01,0.05276241]
[1766499678813,3.32,123.09,123.02,3.39]
[1766499679014,3.32,123.09,123.04,0.05770039]
[1766499680121,3.32,123.08,123.04,0.05770039]
[1766499681822,3.32,123.07,123.0,10.7106]
[1766499683025,0.05229138,123.05,123.02,0.05206786]
[1766499685631,0.05229138,123.05,123.02,3.44206786]
[1766499686124,3.32,123.12,123.03,3.39]
[1766499686926,0.02244322,123.09,123.06,0.06008407]
[1766499688831,0.02244322,123.09,123.06,7.37698407]
[1766499689326,0.02244322,123.09,123.06,8.407e-05]
[1766499693036,0.00244322,123.09,123.06,3.48008407]
[1766499693833,0.00244322,123.09,123.06,10.79678407]
[1766499694030,3.34,123.13,123.06,10.79678407]
[1766499694427,3.34,123.13,123.07,7.3163]
[1766499695139,0.06,123.11,123.09,0.0615216]
[1766499695840,0.06,123.11,123.09,0.0015216]
[1766499700939,3.4,123.11,123.04,10.798]
[1766499701149,0.06,123.11,123.05,3.48]
[1766499701333,3.34,123.13,123.05,3.48]
[1766499701944,0.05429569,123.1,123.08,0.05724996]
[1766499706446,0.05429569,123.1,123.05,3.48]
[1766499707440,113.7986,123.09,123.06,0.05565345]
[1766499707641,3.34,123.05,122.96,3.48]
[1766499708145,3.34,123.05,122.97,3.48]
[1766499708547,0.05907237,123.02,123.0,0.05476665]
[1766499710145,0.05907237,123.02,123.0,0.00476665]
[1766499712548,10.6576,123.06,123.0,0.00476665]
[1766499712742,3.34,123.07,123.0,3.48476665]
[1766499712947,3.34,123.07,123.0,3.48]
[1766499713553,3.34,123.06,123.0,3.48]
[1766499713853,0.05568633,123.05,123.02,0.0621169]
[1766499721568,7.37358633,123.05,123.02,0.0621169]
[1766499722064,10.74358633,123.05,123.02,0.0021169]
[1766499722469,10.6884,123.04,123.02,0.0021169]
[1766499722863,10.6884,123.04,122.98,3.22]
[1766499723062,3.37,123.04,122.98,3.22]
[1766499723967,0.05370562,123.02,123.0,0.05727964]
[1766499733773,0.00370562,123.02,123.0,3.27727964]
[1766499740980,0.00370562,123.02,123.01,7.3201]
[1766499742069,3.37,123.11,123.03,3.22]
[1766499742875,3.37,123.09,123.03,3.22]
[1766499743077,0.05812677,123.07,123.05,0.0548687]
[1766499749583,3.37,123.14,123.05,3.2748687]
[1766499749787,3.37,123.14,123.05,3.22]
[1766499750584,0.0563719,123.11,123.08,0.05304493]
[1766499751287,0.0563719,123.11,123.08,3.49304493]
[1766499751985,0.0563719,123.11,123.08,0.05304493]
[1766499754778,3.32,123.1,123.04,3.54]
[1766499754986,3.32,123.1,123.02,3.54]
[1766499755792,0.05644228,123.07,123.05,0.06076643]
[1766499765299,0.05644228,123.07,123.05,0.00076643]
[1766499771198,3.32,123.06,122.98,3.54]
[1766499771805,3.32,123.05,122.99,10.8611]
[1766499771997,3.32,123.05,122.99,3.54]
[1766499772197,0.05625093,123.03,123.01,0.062177]
[1766499780607,0.05625093,123.03,122.98,7.3217]
[1766499780810,3.29625093,123.03,122.95,3.44]
[1766499781006,3.24,123.02,122.93,3.44]
[1766499781705,3.24,123.01,122.94,3.44]
[1766499782010,0.05475241,122.99,122.96,0.05633072]
[1766499784313,3.24,123.03,122.96,3.49633072]
[1766499784513,3.24,123.03,122.96,3.44]
[1766499785012,3.24,123.02,122.96,3.44]
[1766499785202,0.05780536,123.0,122.98,0.06146109]
[1766499790522,3.29780536,123.0,122.92,3.44]
[1766499790820,3.24,123.0,122.92,3.44]
[1766499791021,3.24,123.0,122.94,3.44]
[1766499791622,0.05839468,122.98,122.96,0.05674963]
[1766499797121,10.559,123.03,122.96,3.49674963]
[1766499797325,3.24,123.02,122.96,3.49674963]
[1766499798427,0.05774607,123.0,122.96,3.49674963]
[1766499801429,0.05774607,123.0,122.96,10.81974963]
[1766499801626,3.24,123.04,122.97,3.44]
[1766499802023,10.5583,123.04,122.97,10.7623]
[1766499802530,0.0539296,123.02,122.99,0.05493487]
[1766499804929,0.0039296,123.02,122.99,3.49493487]
[1766499809240,3.24,123.07,123.0,3.44]
[1766499809933,3.24,123.06,123.0,3.44]
[1766499810139,0.06233422,123.04,123.02,0.00459924]
[1766499823457,3.56233422,123.04,122.96,14.94017614]
[1766499823662,3.5,123.02,122.95,3.25]
[1766499824461,0.05503757,123.0,122.97,0.06244649]
[1766499829668,103.0391,123.03,122.98,3.25]
[1766499829669,95.72,123.03,122.98,3.25]
[1766499829874,3.5,123.04,122.98,3.25]
[1766499830171,3.5,123.04,122.96,3.25]